[Event "Late-Titled-Tuesday-Blitz-May-28-2024"]
[Site "Chess.com"]
[Date "2024.05.28"]
[Round "9"]
[White "TheAlienParty"]
[Black "manitodeplomo"]
[Result "1/2-1/2"]
[WhiteElo "2395"]
[BlackElo "2529"]
[TimeControl "180+1"]
[EndTime "15:44:10 PDT"]
[Termination "Game drawn - insufficient material"]

1. c4 {[%clk 0:02:48.8]} 1... g6 {[%clk 0:02:56]} 2. Nc3 {[%clk 0:02:46.3]} 2...
Bg7 {[%clk 0:02:56.9]} 3. g3 {[%clk 0:02:45.8]} 3... e5 {[%clk 0:02:55]} 4. Bg2
{[%clk 0:02:45.9]} 4... Ne7 {[%clk 0:02:55.7]} 5. e3 {[%clk 0:02:45.7]} 5... O-O
{[%clk 0:02:54.9]} 6. Nge2 {[%clk 0:02:45.6]} 6... c6 {[%clk 0:02:55.2]} 7. d4
{[%clk 0:02:44.8]} 7... d6 {[%clk 0:02:49.3]} 8. O-O {[%clk 0:02:43.8]} 8... Nd7
{[%clk 0:02:48.2]} 9. b3 {[%clk 0:02:42.8]} 9... Re8 {[%clk 0:02:38.6]} 10. Bb2
{[%clk 0:02:42.3]} 10... exd4 {[%clk 0:02:35.8]} 11. Nxd4 {[%clk 0:02:41.7]}
11... Nc5 {[%clk 0:02:31.1]} 12. Qc2 {[%clk 0:02:36.3]} 12... Nf5 {[%clk
0:02:27.3]} 13. Nce2 {[%clk 0:02:14.5]} 13... a5 {[%clk 0:02:20.4]} 14. Rad1
{[%clk 0:02:10.7]} 14... h5 {[%clk 0:02:19.2]} 15. e4 {[%clk 0:02:05.7]} 15...
Nxd4 {[%clk 0:02:15.9]} 16. Nxd4 {[%clk 0:02:05.4]} 16... h4 {[%clk 0:02:12.9]}
17. a3 {[%clk 0:01:55.1]} 17... hxg3 {[%clk 0:02:12.2]} 18. hxg3 {[%clk
0:01:50.1]} 18... Qb6 {[%clk 0:02:05.3]} 19. Rd2 {[%clk 0:01:39]} 19... Bg4
{[%clk 0:01:52.2]} 20. Rb1 {[%clk 0:01:37.2]} 20... Re7 {[%clk 0:01:41.3]} 21.
Bc3 {[%clk 0:01:36.2]} 21... Rae8 {[%clk 0:01:39.8]} 22. f3 {[%clk 0:01:35.9]}
22... Bc8 {[%clk 0:01:37.9]} 23. b4 {[%clk 0:01:35.4]} 23... axb4 {[%clk
0:01:37.2]} 24. axb4 {[%clk 0:01:29.9]} 24... Ne6 {[%clk 0:01:33.8]} 25. Qb2
{[%clk 0:01:22]} 25... f5 {[%clk 0:01:25.5]} 26. exf5 {[%clk 0:01:18.7]} 26...
Nxd4 {[%clk 0:01:23]} 27. Bxd4 {[%clk 0:01:17.1]} 27... Bxd4+ {[%clk 0:01:18.1]}
28. Qxd4 {[%clk 0:01:15.6]} 28... Qxd4+ {[%clk 0:01:17.9]} 29. Rxd4 {[%clk
0:01:15.2]} 29... Bxf5 {[%clk 0:01:18.3]} 30. Rb2 {[%clk 0:01:11]} 30... Re1+
{[%clk 0:01:12.4]} 31. Kh2 {[%clk 0:01:10.7]} 31... Rc1 {[%clk 0:01:12.3]} 32.
g4 {[%clk 0:01:09.7]} 32... Be6 {[%clk 0:01:11.4]} 33. Rxd6 {[%clk 0:01:08.1]}
33... Rxc4 {[%clk 0:01:10.4]} 34. b5 {[%clk 0:01:06.8]} 34... c5 {[%clk
0:01:05.8]} 35. b6 {[%clk 0:01:06.3]} 35... Rd4 {[%clk 0:01:04.5]} 36. Rd2
{[%clk 0:01:02.3]} 36... Rxd2 {[%clk 0:00:57.6]} 37. Rxd2 {[%clk 0:01:01.9]}
37... Kf7 {[%clk 0:00:48.2]} 38. Kg3 {[%clk 0:01:01.5]} 38... Ke7 {[%clk
0:00:44.7]} 39. f4 {[%clk 0:01:01.2]} 39... c4 {[%clk 0:00:44.2]} 40. Bxb7
{[%clk 0:00:51.9]} 40... Rb8 {[%clk 0:00:43.4]} 41. Bd5 {[%clk 0:00:50]} 41...
Rxb6 {[%clk 0:00:42.2]} 42. Bxe6 {[%clk 0:00:46]} 42... Rxe6 {[%clk 0:00:41.4]}
43. Kh4 {[%clk 0:00:45.6]} 43... Rc6 {[%clk 0:00:37.7]} 44. Kg5 {[%clk
0:00:44.2]} 44... c3 {[%clk 0:00:37.2]} 45. Rc2 {[%clk 0:00:42.8]} 45... Kf7
{[%clk 0:00:36.4]} 46. f5 {[%clk 0:00:41.6]} 46... gxf5 {[%clk 0:00:36.3]} 47.
gxf5 {[%clk 0:00:38.8]} 47... Rc5 {[%clk 0:00:36.6]} 48. Kf4 {[%clk 0:00:37.3]}
48... Kf6 {[%clk 0:00:36.6]} 49. Ke4 {[%clk 0:00:37.4]} 49... Rxf5 {[%clk
0:00:34.7]} 50. Rxc3 {[%clk 0:00:37]} 50... Re5+ {[%clk 0:00:34.8]} 51. Kd4
{[%clk 0:00:36.7]} 51... Rf5 {[%clk 0:00:33.8]} 52. Rc5 {[%clk 0:00:36.1]} 52...
Rxc5 {[%clk 0:00:33.4]} 53. Kxc5 {[%clk 0:00:36.1]} 1/2-1/2

[Event "Late-Titled-Tuesday-Blitz-May-28-2024"]
[Site "Chess.com"]
[Date "2024.05.28"]
[Round "9"]
[White "LUISMIGUELOV"]
[Black "OIAM03"]
[Result "1/2-1/2"]
[WhiteElo "2219"]
[BlackElo "2039"]
[TimeControl "180+1"]
[EndTime "15:44:10 PDT"]
[Termination "Game drawn by repetition"]

1. d4 {[%clk 0:02:53.8]} 1... Nf6 {[%clk 0:02:58.4]} 2. c3 {[%clk 0:02:49.8]}
2... g6 {[%clk 0:02:54.4]} 3. Bg5 {[%clk 0:02:49.1]} 3... Bg7 {[%clk 0:02:53.1]}
4. Nd2 {[%clk 0:02:38.8]} 4... d5 {[%clk 0:02:50.1]} 5. e3 {[%clk 0:02:37.1]}
5... O-O {[%clk 0:02:49.7]} 6. Bd3 {[%clk 0:02:36.8]} 6... c5 {[%clk 0:02:49.3]}
7. Ngf3 {[%clk 0:02:34.7]} 7... Nc6 {[%clk 0:02:43.7]} 8. O-O {[%clk 0:02:31.4]}
8... Re8 {[%clk 0:02:24.3]} 9. Ne5 {[%clk 0:02:25.2]} 9... Nxe5 {[%clk
0:02:01.9]} 10. dxe5 {[%clk 0:02:24.6]} 10... Ng4 {[%clk 0:01:45.6]} 11. Bb5
{[%clk 0:02:11.6]} 11... Bd7 {[%clk 0:01:37.8]} 12. Bxd7 {[%clk 0:02:11.1]}
12... Qxd7 {[%clk 0:01:38]} 13. Nf3 {[%clk 0:01:47.4]} 13... Nxe5 {[%clk
0:01:35.2]} 14. Nxe5 {[%clk 0:01:47.5]} 14... Bxe5 {[%clk 0:01:35.1]} 15. Qd3
{[%clk 0:01:44.7]} 15... e6 {[%clk 0:01:32.9]} 16. Rad1 {[%clk 0:01:43.1]} 16...
Qc6 {[%clk 0:01:29]} 17. Bh6 {[%clk 0:01:38.5]} 17... Bf6 {[%clk 0:01:08.4]} 18.
g3 {[%clk 0:01:37.3]} 18... Rad8 {[%clk 0:01:05.7]} 19. h4 {[%clk 0:01:36.8]}
19... e5 {[%clk 0:00:57.5]} 20. h5 {[%clk 0:01:32]} 20... e4 {[%clk 0:00:56.9]}
21. Qe2 {[%clk 0:01:29.9]} 21... Be5 {[%clk 0:00:52.1]} 22. hxg6 {[%clk
0:01:27.5]} 22... Qxg6 {[%clk 0:00:46.8]} 23. Bf4 {[%clk 0:01:26.8]} 23... Bxf4
{[%clk 0:00:42.9]} 24. exf4 {[%clk 0:01:26.6]} 24... d4 {[%clk 0:00:41.2]} 25.
Rfe1 {[%clk 0:01:21.4]} 25... e3 {[%clk 0:00:39.5]} 26. Qf3 {[%clk 0:01:11.8]}
26... exf2+ {[%clk 0:00:29.6]} 27. Qxf2 {[%clk 0:01:11.5]} 27... dxc3 {[%clk
0:00:22.2]} 28. Rxe8+ {[%clk 0:01:06.6]} 28... Rxe8 {[%clk 0:00:22.3]} 29. bxc3
{[%clk 0:01:06.3]} 29... Qf6 {[%clk 0:00:20.3]} 30. Qxc5 {[%clk 0:01:02.9]}
30... Qg6 {[%clk 0:00:16.1]} 31. Qf2 {[%clk 0:01:00.6]} 31... Qc6 {[%clk
0:00:15.3]} 32. Re1 {[%clk 0:00:55.6]} 32... Rc8 {[%clk 0:00:13.8]} 33. Re3
{[%clk 0:00:52.9]} 33... Qc4 {[%clk 0:00:12.1]} 34. Qd2 {[%clk 0:00:49.2]} 34...
Qc5 {[%clk 0:00:07]} 35. Kg2 {[%clk 0:00:47.3]} 35... Qc6+ {[%clk 0:00:05.9]}
36. Kf2 {[%clk 0:00:47]} 36... Qc5 {[%clk 0:00:06]} 37. Kg2 {[%clk 0:00:46.9]}
37... Qc6+ {[%clk 0:00:06.3]} 38. Kf1 {[%clk 0:00:45.9]} 38... Qc4+ {[%clk
0:00:06.1]} 39. Kf2 {[%clk 0:00:45.5]} 39... Qc5 {[%clk 0:00:06.3]} 40. Qd4
{[%clk 0:00:43.9]} 40... Qa3 {[%clk 0:00:04.9]} 41. Qd2 {[%clk 0:00:41.6]} 41...
Qc5 {[%clk 0:00:05.1]} 1/2-1/2

[Event "Late-Titled-Tuesday-Blitz-May-28-2024"]
[Site "Chess.com"]
[Date "2024.05.28"]
[Round "9"]
[White "ckgchess"]
[Black "Statham_01"]
[Result "1-0"]
[WhiteElo "2882"]
[BlackElo "2702"]
[TimeControl "180+1"]
[EndTime "15:44:14 PDT"]
[Termination "ckgchess won on time"]

1. e4 {[%clk 0:03:00.9]} 1... e5 {[%clk 0:03:00]} 2. Nf3 {[%clk 0:03:01.1]} 2...
Nf6 {[%clk 0:03:00.7]} 3. Bc4 {[%clk 0:03:00.5]} 3... Nxe4 {[%clk 0:02:59.4]} 4.
Nc3 {[%clk 0:03:01]} 4... Nxc3 {[%clk 0:02:57.3]} 5. dxc3 {[%clk 0:03:01.9]}
5... f6 {[%clk 0:02:57.2]} 6. Nh4 {[%clk 0:02:59.6]} 6... g6 {[%clk 0:02:46.1]}
7. f4 {[%clk 0:02:56.4]} 7... Qe7 {[%clk 0:02:19.4]} 8. f5 {[%clk 0:02:40]} 8...
Qg7 {[%clk 0:02:14.5]} 9. O-O {[%clk 0:02:27.5]} 9... g5 {[%clk 0:02:02.8]} 10.
Qh5+ {[%clk 0:02:24.9]} 10... Kd8 {[%clk 0:02:01.8]} 11. Nf3 {[%clk 0:02:24]}
11... h6 {[%clk 0:01:42.6]} 12. Be3 {[%clk 0:02:13.8]} 12... c6 {[%clk
0:01:39.9]} 13. Rad1 {[%clk 0:01:51.1]} 13... d5 {[%clk 0:01:23.3]} 14. Bb3
{[%clk 0:01:51.5]} 14... Kc7 {[%clk 0:01:14.2]} 15. Kh1 {[%clk 0:01:18.9]} 15...
Bd6 {[%clk 0:01:13.1]} 16. Bg1 {[%clk 0:01:09.7]} 16... Nd7 {[%clk 0:01:06.2]}
17. c4 {[%clk 0:01:09.9]} 17... d4 {[%clk 0:01:01.9]} 18. c3 {[%clk 0:01:10.1]}
18... c5 {[%clk 0:01:02.2]} 19. Bc2 {[%clk 0:01:07.6]} 19... b6 {[%clk
0:00:49.4]} 20. b4 {[%clk 0:01:06.6]} 20... Bb7 {[%clk 0:00:48.4]} 21. bxc5
{[%clk 0:01:06.9]} 21... bxc5 {[%clk 0:00:49]} 22. Rb1 {[%clk 0:00:56.9]} 22...
Rab8 {[%clk 0:00:46]} 23. cxd4 {[%clk 0:00:48.7]} 23... exd4 {[%clk 0:00:41.8]}
24. Ba4 {[%clk 0:00:37.5]} 24... Ne5 {[%clk 0:00:33]} 25. Nd2 {[%clk 0:00:37.7]}
25... Qf7 {[%clk 0:00:27.8]} 26. Qh3 {[%clk 0:00:36.9]} 26... h5 {[%clk
0:00:22]} 27. Bc2 {[%clk 0:00:34.9]} 27... h4 {[%clk 0:00:13.3]} 28. Qa3 {[%clk
0:00:35.6]} 28... h3 {[%clk 0:00:09.5]} 29. Qa5+ {[%clk 0:00:35]} 29... Kc8
{[%clk 0:00:08.6]} 30. Be4 {[%clk 0:00:29.3]} 30... hxg2+ {[%clk 0:00:08.5]} 31.
Kxg2 {[%clk 0:00:25.4]} 31... Bxe4+ {[%clk 0:00:05.3]} 32. Nxe4 {[%clk
0:00:26.3]} 32... Bc7 {[%clk 0:00:03.8]} 33. Qxc5 {[%clk 0:00:23.9]} 1-0

[Event "Late-Titled-Tuesday-Blitz-May-28-2024"]
[Site "Chess.com"]
[Date "2024.05.28"]
[Round "9"]
[White "th3d4rkness"]
[Black "Dexter_Dyke"]
[Result "0-1"]
[WhiteElo "2181"]
[BlackElo "2448"]
[TimeControl "180+1"]
[EndTime "15:44:14 PDT"]
[Termination "Dexter_Dyke won by resignation"]

1. e4 {[%clk 0:03:00.9]} 1... e6 {[%clk 0:02:57.1]} 2. d4 {[%clk 0:02:58.2]}
2... a6 {[%clk 0:02:58]} 3. c4 {[%clk 0:02:55.9]} 3... d5 {[%clk 0:02:57.9]} 4.
cxd5 {[%clk 0:02:54.1]} 4... exd5 {[%clk 0:02:58.8]} 5. e5 {[%clk 0:02:53.5]}
5... c5 {[%clk 0:02:59]} 6. dxc5 {[%clk 0:02:49.6]} 6... Bxc5 {[%clk 0:02:57.7]}
7. Bd3 {[%clk 0:02:46.8]} 7... Nc6 {[%clk 0:02:57.1]} 8. Nf3 {[%clk 0:02:46.4]}
8... Bg4 {[%clk 0:02:56.9]} 9. Bf4 {[%clk 0:02:42.4]} 9... Nge7 {[%clk
0:02:56.2]} 10. Bg3 {[%clk 0:02:35.4]} 10... Nf5 {[%clk 0:02:49.7]} 11. Bxf5
{[%clk 0:02:29.8]} 11... Bxf5 {[%clk 0:02:49.2]} 12. Nc3 {[%clk 0:02:26.4]}
12... d4 {[%clk 0:02:47.9]} 13. Ne2 {[%clk 0:02:10.7]} 13... Bb4+ {[%clk
0:02:47.1]} 14. Kf1 {[%clk 0:02:09.9]} 14... d3 {[%clk 0:02:47.2]} 15. Nf4
{[%clk 0:02:03.7]} 15... Qd7 {[%clk 0:02:14.1]} 16. a3 {[%clk 0:02:02.3]} 16...
Be7 {[%clk 0:02:10.7]} 17. h3 {[%clk 0:01:44.4]} 17... O-O {[%clk 0:02:04.2]}
18. Kg1 {[%clk 0:01:43.8]} 18... Rad8 {[%clk 0:02:01.7]} 19. Kh2 {[%clk
0:01:43.4]} 19... h6 {[%clk 0:01:56.8]} 20. Re1 {[%clk 0:01:38.1]} 20... Rfe8
{[%clk 0:01:56.1]} 21. Nh4 {[%clk 0:01:27.9]} 21... Bh7 {[%clk 0:01:55.5]} 22.
Nf3 {[%clk 0:01:22]} 22... Bf8 {[%clk 0:01:54.3]} 23. Qd2 {[%clk 0:01:14.7]}
23... Nd4 {[%clk 0:01:52]} 24. Nxd4 {[%clk 0:01:12.9]} 24... Qxd4 {[%clk
0:01:52.9]} 25. e6 {[%clk 0:01:09.1]} 25... g5 {[%clk 0:01:39.2]} 26. exf7+
{[%clk 0:01:03.8]} 26... Kxf7 {[%clk 0:01:40.1]} 27. Nh5 {[%clk 0:00:55.5]}
27... Bg6 {[%clk 0:01:39.4]} 28. Rxe8 {[%clk 0:00:54.4]} 28... Rxe8 {[%clk
0:01:39.3]} 29. f4 {[%clk 0:00:53]} 29... Bxh5 {[%clk 0:01:36.4]} 30. fxg5
{[%clk 0:00:52.4]} 30... Qe3 {[%clk 0:01:23]} 31. Qa5 {[%clk 0:00:49.3]} 31...
d2 {[%clk 0:01:15]} 32. Qf5+ {[%clk 0:00:46.2]} 32... Kg8 {[%clk 0:01:07.1]} 33.
g6 {[%clk 0:00:43.4]} 33... Bxg6 {[%clk 0:00:40.3]} 34. Qxg6+ {[%clk 0:00:39.7]}
34... Bg7 {[%clk 0:00:41]} 35. Rd1 {[%clk 0:00:31.5]} 35... Re6 {[%clk
0:00:39.6]} 36. Qg4 {[%clk 0:00:29.7]} 36... Kh7 {[%clk 0:00:36]} 37. Qf5+
{[%clk 0:00:28.1]} 37... Kh8 {[%clk 0:00:33.7]} 38. Bf4 {[%clk 0:00:28.3]} 38...
Qe4 {[%clk 0:00:27.4]} 39. Qg4 {[%clk 0:00:22.5]} 39... Rg6 {[%clk 0:00:24.3]}
40. Qc8+ {[%clk 0:00:20.6]} 40... Kh7 {[%clk 0:00:24.6]} 41. Rxd2 {[%clk
0:00:16.1]} 41... Qxf4+ {[%clk 0:00:24.4]} 42. Kg1 {[%clk 0:00:15.4]} 42... Qxd2
{[%clk 0:00:25]} 0-1

[Event "Late-Titled-Tuesday-Blitz-May-28-2024"]
[Site "Chess.com"]
[Date "2024.05.28"]
[Round "9"]
[White "GianmarcoVaR"]
[Black "maximnovik"]
[Result "1-0"]
[WhiteElo "2718"]
[BlackElo "2562"]
[TimeControl "180+1"]
[EndTime "15:44:19 PDT"]
[Termination "GianmarcoVaR won by resignation"]

1. Nf3 {[%clk 0:02:29.8]} 1... Nf6 {[%clk 0:02:58.6]} 2. g3 {[%clk 0:02:30.7]}
2... d5 {[%clk 0:02:58.3]} 3. Bg2 {[%clk 0:02:31]} 3... g6 {[%clk 0:02:59]} 4.
O-O {[%clk 0:02:31.4]} 4... Bg7 {[%clk 0:02:59.6]} 5. d3 {[%clk 0:02:32]} 5...
O-O {[%clk 0:02:59.6]} 6. Nc3 {[%clk 0:02:31]} 6... c5 {[%clk 0:02:59.7]} 7. e4
{[%clk 0:02:25]} 7... d4 {[%clk 0:02:59]} 8. Nb1 {[%clk 0:02:20.4]} 8... Nc6
{[%clk 0:02:58.4]} 9. Na3 {[%clk 0:02:19.7]} 9... e5 {[%clk 0:02:56.1]} 10. Nd2
{[%clk 0:02:04.9]} 10... Rb8 {[%clk 0:02:52.6]} 11. Nb3 {[%clk 0:01:47.6]} 11...
Qe7 {[%clk 0:02:40.8]} 12. f4 {[%clk 0:01:45]} 12... Ng4 {[%clk 0:02:36.4]} 13.
Qe2 {[%clk 0:01:40.4]} 13... b5 {[%clk 0:02:31.3]} 14. h3 {[%clk 0:01:40.1]}
14... Nf6 {[%clk 0:02:27.8]} 15. f5 {[%clk 0:01:35.4]} 15... Nh5 {[%clk
0:02:26.5]} 16. Kh2 {[%clk 0:01:32.7]} 16... Bf6 {[%clk 0:02:20.7]} 17. Bh6
{[%clk 0:01:31.1]} 17... Re8 {[%clk 0:02:13.8]} 18. Rf2 {[%clk 0:01:24.8]} 18...
Ba6 {[%clk 0:01:58.8]} 19. Raf1 {[%clk 0:01:14.8]} 19... c4 {[%clk 0:01:56.8]}
20. Nd2 {[%clk 0:01:13.4]} 20... c3 {[%clk 0:01:55.4]} 21. fxg6 {[%clk
0:01:00.5]} 21... fxg6 {[%clk 0:01:52.1]} 22. bxc3 {[%clk 0:00:54.8]} 22... dxc3
{[%clk 0:01:49.2]} 23. Nb3 {[%clk 0:00:55.4]} 23... Qxa3 {[%clk 0:01:37.7]} 24.
Rxf6 {[%clk 0:00:55.7]} 24... Nxf6 {[%clk 0:01:37.5]} 25. Rxf6 {[%clk
0:00:56.4]} 25... Qe7 {[%clk 0:01:36.3]} 26. Rxc6 {[%clk 0:00:56.4]} 26... Bb7
{[%clk 0:01:29.2]} 27. Rxc3 {[%clk 0:00:56.6]} 27... b4 {[%clk 0:01:07.5]} 28.
Rc5 {[%clk 0:00:54.9]} 28... Rbc8 {[%clk 0:01:04.2]} 29. Rxc8 {[%clk 0:00:45.8]}
29... Rxc8 {[%clk 0:01:04.1]} 30. Na5 {[%clk 0:00:44]} 30... Ba6 {[%clk
0:00:59.2]} 31. Nc4 {[%clk 0:00:43.4]} 31... Bxc4 {[%clk 0:00:58.3]} 32. dxc4
{[%clk 0:00:44.1]} 32... Qf7 {[%clk 0:00:56.8]} 33. Bf1 {[%clk 0:00:41.2]} 33...
a5 {[%clk 0:00:53.4]} 34. Be3 {[%clk 0:00:30.4]} 34... Qf6 {[%clk 0:00:45.9]}
35. c5 {[%clk 0:00:27.6]} 35... Rf8 {[%clk 0:00:44.5]} 36. Kg1 {[%clk 0:00:24]}
36... Kg7 {[%clk 0:00:40.7]} 37. Kg2 {[%clk 0:00:15.8]} 37... Rf7 {[%clk
0:00:40.4]} 38. Qd1 {[%clk 0:00:15.3]} 38... g5 {[%clk 0:00:35.1]} 39. Bc4
{[%clk 0:00:15.1]} 39... Rc7 {[%clk 0:00:30.5]} 40. Qd6 {[%clk 0:00:15.4]} 40...
Qxd6 {[%clk 0:00:28.6]} 41. cxd6 {[%clk 0:00:16]} 41... Rxc4 {[%clk 0:00:27.2]}
42. d7 {[%clk 0:00:16.6]} 42... Rxc2+ {[%clk 0:00:27.2]} 43. Kf3 {[%clk
0:00:17.3]} 1-0

[Event "Late-Titled-Tuesday-Blitz-May-28-2024"]
[Site "Chess.com"]
[Date "2024.05.28"]
[Round "9"]
[White "RuperezA"]
[Black "MatthewG-p4p"]
[Result "1-0"]
[WhiteElo "2741"]
[BlackElo "2836"]
[TimeControl "180+1"]
[EndTime "15:44:20 PDT"]
[Termination "RuperezA won on time"]

1. e4 {[%clk 0:03:00.9]} 1... e6 {[%clk 0:03:00]} 2. b3 {[%clk 0:03:00.7]} 2...
d5 {[%clk 0:03:00.9]} 3. Bb2 {[%clk 0:03:00.9]} 3... c5 {[%clk 0:03:00.9]} 4.
exd5 {[%clk 0:02:59.7]} 4... exd5 {[%clk 0:03:01.8]} 5. Nf3 {[%clk 0:03:00.1]}
5... Nf6 {[%clk 0:03:01.9]} 6. d4 {[%clk 0:02:59.8]} 6... Bd6 {[%clk 0:03:02.1]}
7. Be2 {[%clk 0:02:58.8]} 7... O-O {[%clk 0:03:01.8]} 8. O-O {[%clk 0:02:58.9]}
8... Nc6 {[%clk 0:03:02.4]} 9. dxc5 {[%clk 0:02:56.2]} 9... Bxc5 {[%clk
0:03:03.3]} 10. Nc3 {[%clk 0:02:55.7]} 10... Re8 {[%clk 0:03:01.1]} 11. Na4
{[%clk 0:02:48.6]} 11... Bd6 {[%clk 0:02:57.1]} 12. c4 {[%clk 0:02:46.2]} 12...
dxc4 {[%clk 0:02:43.7]} 13. Bxc4 {[%clk 0:02:47.1]} 13... a6 {[%clk 0:02:44.4]}
14. Nc3 {[%clk 0:02:18.5]} 14... Bg4 {[%clk 0:02:38.9]} 15. h3 {[%clk
0:02:16.4]} 15... Bh5 {[%clk 0:02:38.6]} 16. Nd5 {[%clk 0:02:07.4]} 16... Ne4
{[%clk 0:02:32.9]} 17. Re1 {[%clk 0:01:55.3]} 17... Bc5 {[%clk 0:02:28.3]} 18.
Ne3 {[%clk 0:01:45.1]} 18... Qxd1 {[%clk 0:02:18.3]} 19. Raxd1 {[%clk 0:01:46]}
19... Bxf3 {[%clk 0:02:07]} 20. gxf3 {[%clk 0:01:46.9]} 20... Ng5 {[%clk
0:02:07.7]} 21. Kg2 {[%clk 0:01:43.5]} 21... Ne6 {[%clk 0:02:03.1]} 22. Nf5
{[%clk 0:01:37.1]} 22... Bf8 {[%clk 0:00:47.8]} 23. Rd7 {[%clk 0:01:29.1]} 23...
g6 {[%clk 0:00:34.3]} 24. Bxe6 {[%clk 0:01:00.5]} 24... fxe6 {[%clk 0:00:19.1]}
25. Ng7 {[%clk 0:00:54.3]} 25... Re7 {[%clk 0:00:14.3]} 26. Rxe7 {[%clk
0:00:51.5]} 26... Bxe7 {[%clk 0:00:15.2]} 27. Nxe6 {[%clk 0:00:50]} 27... Bb4
{[%clk 0:00:15.4]} 28. Rd1 {[%clk 0:00:48.2]} 28... Re8 {[%clk 0:00:15.1]} 29.
Ng5 {[%clk 0:00:46.1]} 29... Re2 {[%clk 0:00:14.3]} 30. Ba1 {[%clk 0:00:35.3]}
30... Rxa2 {[%clk 0:00:12.9]} 31. Bf6 {[%clk 0:00:21.6]} 31... h6 {[%clk
0:00:12.2]} 32. Ne4 {[%clk 0:00:21.8]} 32... Kf7 {[%clk 0:00:11.8]} 33. Rd7+
{[%clk 0:00:20.9]} 33... Ke6 {[%clk 0:00:12.3]} 34. Rxb7 {[%clk 0:00:21.5]}
34... Be1 {[%clk 0:00:08.4]} 35. Bc3 {[%clk 0:00:20.6]} 35... Bxc3 {[%clk
0:00:06.8]} 36. Nxc3 {[%clk 0:00:21.5]} 36... Nd4 {[%clk 0:00:05.1]} 37. Nxa2
{[%clk 0:00:20.6]} 1-0

[Event "Late-Titled-Tuesday-Blitz-May-28-2024"]
[Site "Chess.com"]
[Date "2024.05.28"]
[Round "9"]
[White "katharinareinecke"]
[Black "lluiss"]
[Result "0-1"]
[WhiteElo "1952"]
[BlackElo "2163"]
[TimeControl "180+1"]
[EndTime "15:44:20 PDT"]
[Termination "lluiss won on time"]

1. d4 {[%clk 0:03:00.9]} 1... Nf6 {[%clk 0:02:58.3]} 2. Nf3 {[%clk 0:03:00.5]}
2... g6 {[%clk 0:02:56.9]} 3. g3 {[%clk 0:03:00.5]} 3... Bg7 {[%clk 0:02:56.9]}
4. Bg2 {[%clk 0:03:00.6]} 4... O-O {[%clk 0:02:57.1]} 5. O-O {[%clk 0:02:57.7]}
5... d5 {[%clk 0:02:56.5]} 6. c4 {[%clk 0:02:57.6]} 6... c6 {[%clk 0:02:56.1]}
7. b3 {[%clk 0:02:56.5]} 7... dxc4 {[%clk 0:02:53.4]} 8. bxc4 {[%clk 0:02:54.3]}
8... c5 {[%clk 0:02:53.7]} 9. e3 {[%clk 0:02:48]} 9... Nc6 {[%clk 0:02:46.3]}
10. Bb2 {[%clk 0:02:39.8]} 10... Ne4 {[%clk 0:02:45.3]} 11. Nbd2 {[%clk
0:02:18.2]} 11... Nd6 {[%clk 0:02:28.9]} 12. Rb1 {[%clk 0:02:01.9]} 12... cxd4
{[%clk 0:02:06.7]} 13. exd4 {[%clk 0:01:59.9]} 13... Bg4 {[%clk 0:02:01]} 14.
Qb3 {[%clk 0:01:45.1]} 14... Bxf3 {[%clk 0:01:31.4]} 15. Nxf3 {[%clk 0:01:45]}
15... Na5 {[%clk 0:01:31.2]} 16. Qb4 {[%clk 0:01:26.6]} 16... Naxc4 {[%clk
0:01:30.9]} 17. Ne5 {[%clk 0:01:23.5]} 17... Rc8 {[%clk 0:01:17.4]} 18. Nxc4
{[%clk 0:01:16.7]} 18... Rxc4 {[%clk 0:01:15.7]} 19. Qa3 {[%clk 0:01:05.4]}
19... a6 {[%clk 0:00:52.1]} 20. Rfc1 {[%clk 0:00:54.3]} 20... Rxc1+ {[%clk
0:00:50.8]} 21. Rxc1 {[%clk 0:00:54.8]} 21... Nb5 {[%clk 0:00:50.6]} 22. Qb4
{[%clk 0:00:37.8]} 22... Bxd4 {[%clk 0:00:37.8]} 23. Bxd4 {[%clk 0:00:34.8]}
23... Nxd4 {[%clk 0:00:37.6]} 24. Kh1 {[%clk 0:00:16.3]} 24... b5 {[%clk
0:00:35.3]} 25. Rd1 {[%clk 0:00:15.4]} 25... e5 {[%clk 0:00:35.2]} 26. f4 {[%clk
0:00:14.5]} 26... Nc6 {[%clk 0:00:19.9]} 27. Rxd8 {[%clk 0:00:09.5]} 27... Nxb4
{[%clk 0:00:18.1]} 28. Rd6 {[%clk 0:00:06.7]} 28... exf4 {[%clk 0:00:16.8]} 29.
gxf4 {[%clk 0:00:05.6]} 29... Rc8 {[%clk 0:00:16.1]} 30. Bb7 {[%clk 0:00:03.9]}
30... Rc1+ {[%clk 0:00:15.6]} 31. Kg2 {[%clk 0:00:03.8]} 31... Rc2+ {[%clk
0:00:16]} 32. Kh3 {[%clk 0:00:03.2]} 32... Rxa2 {[%clk 0:00:16.3]} 33. Rd8+
{[%clk 0:00:02.3]} 33... Kg7 {[%clk 0:00:15.8]} 34. f5 {[%clk 0:00:02.1]} 34...
gxf5 {[%clk 0:00:14.7]} 0-1